[Event "Titled Tuesday Blitz June 21 Early 2022"]
[White "Mirzoev, Azer"]
[Black "Dubov, Daniil"]
[WhiteFideId "13400304"]
[BlackFideId "24126055"]
[WhiteElo "2525"]
[BlackElo "2791"]
[Result "1/2-1/2"]
[Round "02"]
[TimeControl "180+1"]
[Date "2022.06.21"]
[WhiteClock "0:00:09"]
[BlackClock "0:00:11"]

1. d4 {[%clk 0:02:59]}  Nf6 {[%clk 0:02:58]} 2. Nf3 {[%clk 0:02:57]}  g6 {[%clk 0:02:57]} 3. Nc3 {[%clk 0:02:54]}  d5 {[%clk 0:02:56]} 4. Bf4 {[%clk 0:02:52]}  Bg7 {[%clk 0:02:56]} 5. Nb5 {[%clk 0:02:48]}  Na6 {[%clk 0:02:55]} 6. e3 {[%clk 0:02:48]}  O-O {[%clk 0:02:54]} 7. h3 {[%clk 0:02:47]}  c6 {[%clk 0:02:52]} 8. Nc3 {[%clk 0:02:47]}  Nb8 {[%clk 0:02:45]} 9. Be2 {[%clk 0:02:44]}  Nbd7 {[%clk 0:02:42]} 10. O-O {[%clk 0:02:44]}  b5 {[%clk 0:02:32]} 11. a4 {[%clk 0:02:35]}  b4 {[%clk 0:02:32]} 12. Na2 {[%clk 0:02:36]}  a5 {[%clk 0:02:28]} 13. c3 {[%clk 0:02:32]}  Qb6 {[%clk 0:02:15]} 14. c4 {[%clk 0:02:17]}  c5 {[%clk 0:02:02]} 15. dxc5 {[%clk 0:02:12]}  Nxc5 {[%clk 0:02:00]} 16. Be5 {[%clk 0:02:06]}  Rd8 {[%clk 0:01:57]} 17. Bd4 {[%clk 0:01:58]}  dxc4 {[%clk 0:01:24]} 18. Bxc4 {[%clk 0:01:57]}  Nfe4 {[%clk 0:01:22]} 19. Qe2 {[%clk 0:01:37]}  b3 {[%clk 0:01:16]} 20. Nc1 {[%clk 0:01:26]}  Qb4 {[%clk 0:01:11]} 21. Rd1 {[%clk 0:01:10]}  Be6 {[%clk 0:00:54]} 22. Bxe6 {[%clk 0:01:00]}  Nxe6 {[%clk 0:00:54]} 23. Bxg7 {[%clk 0:00:55]}  Kxg7 {[%clk 0:00:54]} 24. Nd3 {[%clk 0:00:53]}  Qc4 {[%clk 0:00:46]} 25. Nfe5 {[%clk 0:00:49]}  Qc2 {[%clk 0:00:45]} 26. Qf3 {[%clk 0:00:48]}  N6g5 {[%clk 0:00:35]} 27. Qf4 {[%clk 0:00:43]}  f6 {[%clk 0:00:27]} 28. Rdc1 {[%clk 0:00:42]}  fxe5 {[%clk 0:00:17]} 29. Qxe5+ {[%clk 0:00:41]}  Kg8 {[%clk 0:00:16]} 30. Rxc2 {[%clk 0:00:39]}  bxc2 {[%clk 0:00:17]} 31. Rc1 {[%clk 0:00:33]}  Rac8 {[%clk 0:00:16]} 32. h4 {[%clk 0:00:18]}  Rxd3 {[%clk 0:00:15]} 33. hxg5 {[%clk 0:00:18]}  Rd1+ {[%clk 0:00:15]} 34. Kh2 {[%clk 0:00:18]}  Rxc1 {[%clk 0:00:14]} 35. Qe6+ {[%clk 0:00:18]}  Kg7 {[%clk 0:00:14]} 36. Qxe7+ {[%clk 0:00:16]}  Kg8 {[%clk 0:00:13]} 37. Qe6+ {[%clk 0:00:16]}  Kg7 {[%clk 0:00:14]} 38. Qxc8 {[%clk 0:00:14]}  Nxf2 {[%clk 0:00:13]} 39. Qc7+ {[%clk 0:00:11]}  Kg8 {[%clk 0:00:11]} 40. Qd8+ {[%clk 0:00:10]}  Kf7 {[%clk 0:00:10]} 41. Qd7+ {[%clk 0:00:10]}  Kf8 {[%clk 0:00:10]} 42. Qd8+ {[%clk 0:00:10]}  Kf7 {[%clk 0:00:11]} 43. Qd7+ {[%clk 0:00:09]}  Kf8 {[%clk 0:00:11]} 44. Qd8+ {[%clk 0:00:09]}  Kf7 {[%clk 0:00:11]} 1/2-1/2


[Site "https://www.chess.com"]

[Event "Titled Tuesday Blitz June 21 Early 2022"]
[White "Mrudul Dehankar"]
[Black "Wagner, Dennis"]
[WhiteFideId "25096990"]
[BlackFideId "24650684"]
[WhiteElo "2283"]
[BlackElo "2709"]
[Result "0-1"]
[Round "02"]
[TimeControl "180+1"]
[Date "2022.06.22"]
[WhiteClock "0:00:01"]
[BlackClock "0:00:41"]

1. d4 {[%clk 0:03:00]}  Nf6 {[%clk 0:02:59]} 2. Bf4 {[%clk 0:02:57]}  e6 {[%clk 0:02:55]} 3. e3 {[%clk 0:02:55]}  d5 {[%clk 0:02:55]} 4. Nd2 {[%clk 0:02:46]}  Bd6 {[%clk 0:02:55]} 5. Bg3 {[%clk 0:02:44]}  c5 {[%clk 0:02:53]} 6. Ngf3 {[%clk 0:02:39]}  O-O {[%clk 0:02:51]} 7. c3 {[%clk 0:02:37]}  Qc7 {[%clk 0:02:51]} 8. Ne5 {[%clk 0:02:36]}  Nc6 {[%clk 0:02:48]} 9. f4 {[%clk 0:02:35]}  Ne7 {[%clk 0:02:44]} 10. Bd3 {[%clk 0:02:33]}  Nf5 {[%clk 0:02:44]} 11. Bf2 {[%clk 0:02:33]}  Be7 {[%clk 0:02:43]} 12. Qf3 {[%clk 0:01:45]}  b6 {[%clk 0:02:37]} 13. O-O {[%clk 0:00:57]}  Bb7 {[%clk 0:02:35]} 14. Ng4 {[%clk 0:00:07]}  Nxg4 {[%clk 0:02:22]} 15. Qxg4 {[%clk 0:00:07]}  Nd6 {[%clk 0:02:20]} 16. Nf3 {[%clk 0:00:06]}  Ne4 {[%clk 0:02:18]} 17. Bh4 {[%clk 0:00:04]}  Bxh4 {[%clk 0:02:11]} 18. Qxh4 {[%clk 0:00:04]}  f6 {[%clk 0:02:12]} 19. Kh1 {[%clk 0:00:03]}  Bc6 {[%clk 0:01:58]} 20. g4 {[%clk 0:00:03]}  Be8 {[%clk 0:01:31]} 21. g5 {[%clk 0:00:02]}  Bg6 {[%clk 0:01:32]} 22. gxf6 {[%clk 0:00:02]}  gxf6 {[%clk 0:01:32]} 23. Rg1 {[%clk 0:00:02]}  Qf7 {[%clk 0:01:20]} 24. Rg2 {[%clk 0:00:01]}  Kh8 {[%clk 0:01:20]} 25. Rag1 {[%clk 0:00:02]}  Nf2+ {[%clk 0:01:01]} 26. Qxf2 {[%clk 0:00:01]}  Bxd3 {[%clk 0:01:02]} 27. Nh4 {[%clk 0:00:02]}  Be4 {[%clk 0:01:01]} 28. Nf3 {[%clk 0:00:02]}  Qh5 {[%clk 0:00:58]} 29. Rg3 {[%clk 0:00:02]}  Rg8 {[%clk 0:00:57]} 30. Kg2 {[%clk 0:00:02]}  Rg4 {[%clk 0:00:47]} 31. Kf1 {[%clk 0:00:02]}  Rag8 {[%clk 0:00:43]} 32. Nd2 {[%clk 0:00:01]}  Bd3+ {[%clk 0:00:41]} 0-1


[Site "https://www.chess.com"]

[Event "Titled Tuesday Blitz June 21 Early 2022"]
[White "Navara, David"]
[Black "Volkov, Maksim"]
[WhiteFideId "309095"]
[BlackFideId "54123070"]
[WhiteElo "2686"]
[BlackElo "2155"]
[Result "1-0"]
[Round "02"]
[TimeControl "180+1"]
[Date "2022.06.21"]
[WhiteClock "0:00:33"]
[BlackClock "0:01:09"]

1. d4 {[%clk 0:03:00]}  d5 {[%clk 0:02:59]} 2. c4 {[%clk 0:03:01]}  e6 {[%clk 0:02:59]} 3. Nc3 {[%clk 0:03:01]}  c6 {[%clk 0:03:00]} 4. e3 {[%clk 0:03:00]}  Nf6 {[%clk 0:03:00]} 5. Nf3 {[%clk 0:03:01]}  Nbd7 {[%clk 0:03:00]} 6. Qc2 {[%clk 0:03:01]}  Bd6 {[%clk 0:03:00]} 7. b3 {[%clk 0:03:00]}  O-O {[%clk 0:03:00]} 8. Be2 {[%clk 0:03:00]}  b6 {[%clk 0:02:59]} 9. O-O {[%clk 0:03:00]}  Bb7 {[%clk 0:02:59]} 10. Bb2 {[%clk 0:03:01]}  Rc8 {[%clk 0:02:58]} 11. e4 {[%clk 0:02:47]}  dxe4 {[%clk 0:02:58]} 12. Nxe4 {[%clk 0:02:48]}  Nxe4 {[%clk 0:02:59]} 13. Qxe4 {[%clk 0:02:49]}  Nf6 {[%clk 0:03:00]} 14. Qh4 {[%clk 0:02:44]}  c5 {[%clk 0:02:59]} 15. Rad1 {[%clk 0:02:39]}  Qe7 {[%clk 0:02:51]} 16. Bd3 {[%clk 0:02:21]}  Bxf3 {[%clk 0:02:30]} 17. dxc5 {[%clk 0:02:21]}  Ne4 {[%clk 0:02:28]} 18. Qxe7 {[%clk 0:02:15]}  Bxe7 {[%clk 0:02:28]} 19. gxf3 {[%clk 0:02:16]}  Nxc5 {[%clk 0:02:28]} 20. Bc2 {[%clk 0:01:53]}  Rfd8 {[%clk 0:02:27]} 21. f4 {[%clk 0:01:22]}  Bf6 {[%clk 0:02:21]} 22. Bxf6 {[%clk 0:01:21]}  gxf6 {[%clk 0:02:21]} 23. Kg2 {[%clk 0:01:22]}  f5 {[%clk 0:02:16]} 24. Kf3 {[%clk 0:01:20]}  Kg7 {[%clk 0:02:16]} 25. Ke3 {[%clk 0:01:11]}  Kf6 {[%clk 0:02:15]} 26. Rxd8 {[%clk 0:01:02]}  Rxd8 {[%clk 0:02:15]} 27. b4 {[%clk 0:01:03]}  Na6 {[%clk 0:01:51]} 28. a3 {[%clk 0:01:03]}  Nc7 {[%clk 0:01:51]} 29. Rd1 {[%clk 0:00:56]}  Rxd1 {[%clk 0:01:42]} 30. Bxd1 {[%clk 0:00:57]}  Ke7 {[%clk 0:01:38]} 31. Kd4 {[%clk 0:00:52]}  f6 {[%clk 0:01:33]} 32. Be2 {[%clk 0:00:50]}  Kd6 {[%clk 0:01:31]} 33. c5+ {[%clk 0:00:50]}  bxc5+ {[%clk 0:01:24]} 34. bxc5+ {[%clk 0:00:51]}  Kd7 {[%clk 0:01:21]} 35. Bc4 {[%clk 0:00:46]}  Kc6 {[%clk 0:01:18]} 36. a4 {[%clk 0:00:39]}  Nd5 {[%clk 0:01:10]} 37. Bxd5+ {[%clk 0:00:35]}  exd5 {[%clk 0:01:11]} 38. a5 {[%clk 0:00:35]}  a6 {[%clk 0:01:11]} 39. h4 {[%clk 0:00:33]}  h5 {[%clk 0:01:09]} 40. f3 {[%clk 0:00:33]} 1-0


[Site "https://www.chess.com"]

[Event "Titled Tuesday Blitz June 21 Early 2022"]
[White "Nesterov, Arseniy"]
[Black "Dobrikov, Marco"]
[WhiteFideId "24198455"]
[BlackFideId "12950378"]
[WhiteElo "2804"]
[BlackElo "2575"]
[Result "0-1"]
[Round "02"]
[TimeControl "180+1"]
[Date "2022.06.22"]
[WhiteClock "0:00:04"]
[BlackClock "0:00:33"]

1. d4 {[%clk 0:03:00]}  Nf6 {[%clk 0:03:00]} 2. c4 {[%clk 0:03:01]}  g6 {[%clk 0:03:00]} 3. Nc3 {[%clk 0:03:00]}  Bg7 {[%clk 0:03:01]} 4. e4 {[%clk 0:03:01]}  d6 {[%clk 0:03:00]} 5. Be2 {[%clk 0:03:01]}  O-O {[%clk 0:03:01]} 6. Be3 {[%clk 0:03:02]}  c6 {[%clk 0:03:01]} 7. Nf3 {[%clk 0:03:00]}  a6 {[%clk 0:03:00]} 8. O-O {[%clk 0:02:57]}  b5 {[%clk 0:03:01]} 9. a3 {[%clk 0:02:57]}  bxc4 {[%clk 0:02:47]} 10. Bxc4 {[%clk 0:02:56]}  Nxe4 {[%clk 0:02:47]} 11. Nxe4 {[%clk 0:02:55]}  d5 {[%clk 0:02:48]} 12. Bd3 {[%clk 0:02:55]}  dxe4 {[%clk 0:02:48]} 13. Bxe4 {[%clk 0:02:56]}  Be6 {[%clk 0:02:49]} 14. Qc2 {[%clk 0:02:50]}  Bd5 {[%clk 0:02:49]} 15. Ne5 {[%clk 0:02:39]}  a5 {[%clk 0:02:42]} 16. Rac1 {[%clk 0:02:26]}  e6 {[%clk 0:02:33]} 17. Rfd1 {[%clk 0:02:04]}  a4 {[%clk 0:02:26]} 18. Nxc6 {[%clk 0:01:57]}  Nxc6 {[%clk 0:02:24]} 19. Bxd5 {[%clk 0:01:57]}  Nb4 {[%clk 0:02:09]} 20. axb4 {[%clk 0:01:57]}  Qxd5 {[%clk 0:02:10]} 21. Ra1 {[%clk 0:01:13]}  Rfc8 {[%clk 0:02:05]} 22. Qd3 {[%clk 0:01:01]}  h5 {[%clk 0:02:04]} 23. Rdc1 {[%clk 0:00:53]}  Rxc1+ {[%clk 0:02:02]} 24. Rxc1 {[%clk 0:00:54]}  Bf8 {[%clk 0:02:02]} 25. Rc4 {[%clk 0:00:50]}  Qb5 {[%clk 0:02:00]} 26. Qc3 {[%clk 0:00:44]}  a3 {[%clk 0:01:58]} 27. bxa3 {[%clk 0:00:43]}  Rxa3 {[%clk 0:01:58]} 28. Qxa3 {[%clk 0:00:43]}  Qxc4 {[%clk 0:01:59]} 29. Bd2 {[%clk 0:00:31]}  Qxd4 {[%clk 0:01:57]} 30. Qc3 {[%clk 0:00:28]}  Qd5 {[%clk 0:01:49]} 31. h4 {[%clk 0:00:25]}  Bg7 {[%clk 0:01:37]} 32. Qc2 {[%clk 0:00:25]}  Bd4 {[%clk 0:01:35]} 33. Qc8+ {[%clk 0:00:17]}  Kg7 {[%clk 0:01:34]} 34. Bc3 {[%clk 0:00:17]}  e5 {[%clk 0:01:14]} 35. Be1 {[%clk 0:00:11]}  Qe4 {[%clk 0:01:11]} 36. Qc1 {[%clk 0:00:07]}  Qxh4 {[%clk 0:01:07]} 37. b5 {[%clk 0:00:07]}  Qe4 {[%clk 0:01:06]} 38. Ba5 {[%clk 0:00:07]}  Qe2 {[%clk 0:01:05]} 39. Qf1 {[%clk 0:00:05]}  Qa2 {[%clk 0:00:50]} 40. Bc7 {[%clk 0:00:05]}  Qd5 {[%clk 0:00:47]} 41. b6 {[%clk 0:00:04]}  Qc6 {[%clk 0:00:48]} 42. Qb1 {[%clk 0:00:04]}  Qf6 {[%clk 0:00:35]} 43. Qc2 {[%clk 0:00:03]}  Bxb6 {[%clk 0:00:34]} 44. Bb8 {[%clk 0:00:03]}  Bd4 {[%clk 0:00:34]} 45. g3 {[%clk 0:00:03]}  h4 {[%clk 0:00:34]} 46. gxh4 {[%clk 0:00:03]}  Qxh4 {[%clk 0:00:33]} 47. Bc7 {[%clk 0:00:03]}  Qg4+ {[%clk 0:00:33]} 48. Kf1 {[%clk 0:00:04]}  Qf3 {[%clk 0:00:33]} 49. Ke1 {[%clk 0:00:04]}  g5 {[%clk 0:00:33]} 50. Bd8 {[%clk 0:00:04]}  g4 {[%clk 0:00:33]} 51. Bh4 {[%clk 0:00:04]}  Qh1+ {[%clk 0:00:32]} 52. Ke2 {[%clk 0:00:04]}  Qxh4 {[%clk 0:00:33]} 0-1


[Site "https://www.chess.com"]

[Event "Titled Tuesday Blitz June 21 Early 2022"]
[White "Nguyen, Quoc Hy"]
[Black "Hakobyan, Aram"]
[WhiteFideId "12410853"]
[BlackFideId "13306677"]
[WhiteElo "1938"]
[BlackElo "2557"]
[Result "0-1"]
[Round "02"]
[TimeControl "180+1"]
[Date "2022.06.21"]
[WhiteClock "0:00:03"]
[BlackClock "0:01:30"]

1. d4 {[%clk 0:03:00]}  Nf6 {[%clk 0:02:57]} 2. c4 {[%clk 0:03:01]}  e6 {[%clk 0:02:58]} 3. Nc3 {[%clk 0:03:01]}  Bb4 {[%clk 0:02:59]} 4. Qc2 {[%clk 0:03:00]}  O-O {[%clk 0:02:57]} 5. Bg5 {[%clk 0:02:59]}  h6 {[%clk 0:02:56]} 6. Bh4 {[%clk 0:02:58]}  c5 {[%clk 0:02:54]} 7. dxc5 {[%clk 0:02:56]}  Bxc5 {[%clk 0:02:55]} 8. Nf3 {[%clk 0:02:50]}  Nc6 {[%clk 0:02:54]} 9. e3 {[%clk 0:02:48]}  b6 {[%clk 0:02:54]} 10. Be2 {[%clk 0:02:48]}  Bb7 {[%clk 0:02:55]} 11. O-O {[%clk 0:02:48]}  Be7 {[%clk 0:02:56]} 12. Rfd1 {[%clk 0:02:42]}  Rc8 {[%clk 0:02:56]} 13. Rac1 {[%clk 0:02:38]}  d6 {[%clk 0:02:50]} 14. Qb1 {[%clk 0:02:25]}  a6 {[%clk 0:02:50]} 15. h3 {[%clk 0:02:23]}  Nb8 {[%clk 0:02:47]} 16. Nd4 {[%clk 0:02:19]}  Nbd7 {[%clk 0:02:47]} 17. b3 {[%clk 0:02:18]}  Rc7 {[%clk 0:02:45]} 18. Bf3 {[%clk 0:02:18]}  Qa8 {[%clk 0:02:45]} 19. Bxb7 {[%clk 0:02:17]}  Qxb7 {[%clk 0:02:46]} 20. Nde2 {[%clk 0:02:03]}  Rfc8 {[%clk 0:02:44]} 21. Bg3 {[%clk 0:02:03]}  Ne5 {[%clk 0:02:41]} 22. a4 {[%clk 0:01:46]}  Bf8 {[%clk 0:02:37]} 23. Rd2 {[%clk 0:01:36]}  Rc5 {[%clk 0:02:36]} 24. Rcd1 {[%clk 0:01:32]}  b5 {[%clk 0:02:14]} 25. axb5 {[%clk 0:01:23]}  axb5 {[%clk 0:02:15]} 26. Nxb5 {[%clk 0:01:19]}  Ne4 {[%clk 0:02:12]} 27. Rd4 {[%clk 0:01:13]}  Nxg3 {[%clk 0:02:09]} 28. Nxg3 {[%clk 0:01:14]}  d5 {[%clk 0:02:08]} 29. Nc3 {[%clk 0:00:52]}  Nc6 {[%clk 0:02:05]} 30. R4d2 {[%clk 0:00:32]}  dxc4 {[%clk 0:02:01]} 31. bxc4 {[%clk 0:00:33]}  Qxb1 {[%clk 0:02:00]} 32. Rxb1 {[%clk 0:00:33]}  Rxc4 {[%clk 0:02:01]} 33. Nce4 {[%clk 0:00:34]}  Ne5 {[%clk 0:01:59]} 34. Nd6 {[%clk 0:00:33]}  Rc1+ {[%clk 0:01:59]} 35. Rxc1 {[%clk 0:00:32]}  Rxc1+ {[%clk 0:02:00]} 36. Kh2 {[%clk 0:00:33]}  f5 {[%clk 0:01:54]} 37. Nb5 {[%clk 0:00:33]}  Bb4 {[%clk 0:01:51]} 38. Rb2 {[%clk 0:00:32]}  Nd3 {[%clk 0:01:46]} 39. Rb3 {[%clk 0:00:27]}  Rd1 {[%clk 0:01:46]} 40. Nd4 {[%clk 0:00:25]}  Bd6 {[%clk 0:01:39]} 41. f4 {[%clk 0:00:18]}  Nxf4 {[%clk 0:01:39]} 42. Ndxf5 {[%clk 0:00:14]}  exf5 {[%clk 0:01:40]} 43. exf4 {[%clk 0:00:11]}  Bxf4 {[%clk 0:01:40]} 44. Rf3 {[%clk 0:00:11]}  g5 {[%clk 0:01:40]} 45. h4 {[%clk 0:00:10]}  Kf7 {[%clk 0:01:38]} 46. hxg5 {[%clk 0:00:08]}  hxg5 {[%clk 0:01:39]} 47. Rxf4 {[%clk 0:00:04]}  gxf4 {[%clk 0:01:39]} 48. Nxf5 {[%clk 0:00:04]}  Kf6 {[%clk 0:01:36]} 49. Nh4 {[%clk 0:00:04]}  Kg5 {[%clk 0:01:31]} 50. Kh3 {[%clk 0:00:03]}  Rh1# {[%clk 0:01:30]} 0-1


[Site "https://www.chess.com"]

[Event "Titled Tuesday Blitz June 21 Early 2022"]
[White "Nunez V, Gustavo Eduardo"]
[Black "Aldokhin, Ivan"]
[WhiteFideId "4403690"]
[BlackFideId "24115720"]
[WhiteElo "2228"]
[BlackElo "2231"]
[Result "1-0"]
[Round "02"]
[TimeControl "180+1"]
[Date "2022.06.22"]
[WhiteClock "0:00:12"]
[BlackClock "0:00:08"]

1. e4 {[%clk 0:03:00]}  e6 {[%clk 0:03:00]} 2. d4 {[%clk 0:03:00]}  d5 {[%clk 0:03:00]} 3. e5 {[%clk 0:03:00]}  b6 {[%clk 0:02:59]} 4. g3 {[%clk 0:03:00]}  Ba6 {[%clk 0:02:58]} 5. Bxa6 {[%clk 0:02:44]}  Nxa6 {[%clk 0:02:58]} 6. Ne2 {[%clk 0:02:44]}  Qd7 {[%clk 0:02:55]} 7. O-O {[%clk 0:02:44]}  c5 {[%clk 0:02:53]} 8. c3 {[%clk 0:02:43]}  Ne7 {[%clk 0:02:48]} 9. a3 {[%clk 0:02:42]}  c4 {[%clk 0:02:39]} 10. Nd2 {[%clk 0:02:38]}  Nc7 {[%clk 0:02:30]} 11. b4 {[%clk 0:02:37]}  cxb3 {[%clk 0:02:29]} 12. Qxb3 {[%clk 0:02:36]}  Nc6 {[%clk 0:02:27]} 13. a4 {[%clk 0:02:22]}  Na5 {[%clk 0:02:26]} 14. Qa2 {[%clk 0:02:21]}  Rc8 {[%clk 0:02:17]} 15. c4 {[%clk 0:02:18]}  dxc4 {[%clk 0:02:04]} 16. Nxc4 {[%clk 0:02:19]}  Nxc4 {[%clk 0:02:03]} 17. Qxc4 {[%clk 0:02:20]}  Nd5 {[%clk 0:02:02]} 18. Qb5 {[%clk 0:02:17]}  Bb4 {[%clk 0:01:49]} 19. Ba3 {[%clk 0:01:51]}  Qxb5 {[%clk 0:01:38]} 20. axb5 {[%clk 0:01:50]}  Ba5 {[%clk 0:01:38]} 21. Rfc1 {[%clk 0:01:46]}  Kd7 {[%clk 0:01:38]} 22. Bb2 {[%clk 0:01:29]}  Rxc1+ {[%clk 0:01:27]} 23. Rxc1 {[%clk 0:01:28]}  Rc8 {[%clk 0:01:26]} 24. Rxc8 {[%clk 0:00:53]}  Kxc8 {[%clk 0:01:27]} 25. Nf4 {[%clk 0:00:52]}  Nxf4 {[%clk 0:01:14]} 26. gxf4 {[%clk 0:00:53]}  Bd2 {[%clk 0:01:13]} 27. f5 {[%clk 0:00:51]}  exf5 {[%clk 0:01:10]} 28. d5 {[%clk 0:00:50]}  Kd7 {[%clk 0:00:47]} 29. h4 {[%clk 0:00:33]}  g5 {[%clk 0:00:36]} 30. hxg5 {[%clk 0:00:26]}  Bxg5 {[%clk 0:00:36]} 31. Kg2 {[%clk 0:00:26]}  h5 {[%clk 0:00:35]} 32. Kg3 {[%clk 0:00:26]}  h4+ {[%clk 0:00:31]} 33. Kh3 {[%clk 0:00:23]}  Kc7 {[%clk 0:00:31]} 34. Ba3 {[%clk 0:00:18]}  Kb7 {[%clk 0:00:28]} 35. Bd6 {[%clk 0:00:16]}  a6 {[%clk 0:00:22]} 36. bxa6+ {[%clk 0:00:15]}  Kxa6 {[%clk 0:00:23]} 37. e6 {[%clk 0:00:15]}  fxe6 {[%clk 0:00:21]} 38. dxe6 {[%clk 0:00:16]}  Kb5 {[%clk 0:00:16]} 39. e7 {[%clk 0:00:16]}  Bxe7 {[%clk 0:00:16]} 40. Bxe7 {[%clk 0:00:17]}  Kc4 {[%clk 0:00:16]} 41. Kxh4 {[%clk 0:00:16]}  Kd4 {[%clk 0:00:13]} 42. Bg5 {[%clk 0:00:14]}  Ke4 {[%clk 0:00:11]} 43. Kg3 {[%clk 0:00:10]}  b5 {[%clk 0:00:11]} 44. Bd2 {[%clk 0:00:10]}  Kd3 {[%clk 0:00:11]} 45. Bb4 {[%clk 0:00:09]}  Ke4 {[%clk 0:00:11]} 46. f4 {[%clk 0:00:09]}  Ke3 {[%clk 0:00:10]} 47. Bd6 {[%clk 0:00:08]}  Ke4 {[%clk 0:00:09]} 48. Kh4 {[%clk 0:00:06]}  b4 {[%clk 0:00:09]} 49. Kg5 {[%clk 0:00:06]}  b3 {[%clk 0:00:09]} 50. Ba3 {[%clk 0:00:07]}  Kd5 {[%clk 0:00:03]} 51. Kxf5 {[%clk 0:00:07]}  b2 {[%clk 0:00:03]} 52. Bxb2 {[%clk 0:00:07]}  Kd6 {[%clk 0:00:03]} 53. Kf6 {[%clk 0:00:07]}  Kd7 {[%clk 0:00:03]} 54. Kf7 {[%clk 0:00:08]}  Kd6 {[%clk 0:00:03]} 55. f5 {[%clk 0:00:09]}  Kd5 {[%clk 0:00:03]} 56. f6 {[%clk 0:00:09]}  Kd6 {[%clk 0:00:03]} 57. Ke8 {[%clk 0:00:10]}  Ke6 {[%clk 0:00:03]} 58. f7 {[%clk 0:00:10]}  Kd5 {[%clk 0:00:03]} 59. f8=Q {[%clk 0:00:11]}  Kc4 {[%clk 0:00:03]} 60. Qf7+ {[%clk 0:00:12]}  Kd3 {[%clk 0:00:03]} 61. Bf6 {[%clk 0:00:12]}  Kc2 {[%clk 0:00:04]} 62. Qd7 {[%clk 0:00:12]}  Kb1 {[%clk 0:00:05]} 63. Ke7 {[%clk 0:00:12]}  Ka2 {[%clk 0:00:06]} 64. Kd6 {[%clk 0:00:13]}  Kb3 {[%clk 0:00:06]} 65. Kc5 {[%clk 0:00:14]}  Kc2 {[%clk 0:00:07]} 66. Qd5 {[%clk 0:00:13]}  Kb1 {[%clk 0:00:08]} 67. Qg2 {[%clk 0:00:13]}  Kc1 {[%clk 0:00:08]} 68. Bc3 {[%clk 0:00:12]} 1-0


[Site "https://www.chess.com"]

[Event "Titled Tuesday Blitz June 21 Early 2022"]
[White "Ovchinnikov, Vsevolod"]
[Black "Lauridsen, Jesper Morch"]
[WhiteFideId "24176842"]
[BlackFideId "1401890"]
[WhiteElo "2376"]
[BlackElo "2217"]
[Result "1-0"]
[Round "02"]
[TimeControl "180+1"]
[Date "2022.06.22"]
[WhiteClock "0:01:24"]
[BlackClock "0:00:10"]

1. d4 {[%clk 0:03:00]}  Nf6 {[%clk 0:02:59]} 2. c4 {[%clk 0:03:01]}  e6 {[%clk 0:02:59]} 3. g3 {[%clk 0:03:01]}  c5 {[%clk 0:02:59]} 4. d5 {[%clk 0:03:01]}  exd5 {[%clk 0:02:58]} 5. cxd5 {[%clk 0:03:02]}  d6 {[%clk 0:02:58]} 6. Nc3 {[%clk 0:03:03]}  g6 {[%clk 0:02:59]} 7. Bg2 {[%clk 0:03:04]}  Bg7 {[%clk 0:02:59]} 8. Nf3 {[%clk 0:03:05]}  O-O {[%clk 0:02:59]} 9. O-O {[%clk 0:03:05]}  Re8 {[%clk 0:03:00]} 10. Nd2 {[%clk 0:03:06]}  Na6 {[%clk 0:02:56]} 11. Nc4 {[%clk 0:03:03]}  Nc7 {[%clk 0:02:52]} 12. a4 {[%clk 0:03:02]}  b6 {[%clk 0:02:48]} 13. Bf4 {[%clk 0:03:02]}  Bf8 {[%clk 0:02:48]} 14. Qd2 {[%clk 0:02:46]}  Ba6 {[%clk 0:02:42]} 15. b3 {[%clk 0:02:46]}  Bxc4 {[%clk 0:02:33]} 16. bxc4 {[%clk 0:02:47]}  Nh5 {[%clk 0:02:29]} 17. Bg5 {[%clk 0:02:45]}  Be7 {[%clk 0:02:27]} 18. Bh6 {[%clk 0:02:45]}  Na6 {[%clk 0:02:16]} 19. g4 {[%clk 0:02:37]}  Ng7 {[%clk 0:02:09]} 20. h3 {[%clk 0:02:09]}  Nb4 {[%clk 0:02:06]} 21. Ne4 {[%clk 0:02:06]}  f5 {[%clk 0:01:59]} 22. Ng3 {[%clk 0:02:05]}  fxg4 {[%clk 0:01:48]} 23. hxg4 {[%clk 0:02:06]}  Bf6 {[%clk 0:01:43]} 24. Ra3 {[%clk 0:02:05]}  Qd7 {[%clk 0:01:41]} 25. Bh3 {[%clk 0:02:03]}  Be5 {[%clk 0:01:34]} 26. Kh2 {[%clk 0:01:47]}  Re7 {[%clk 0:01:25]} 27. f4 {[%clk 0:01:45]}  Bd4 {[%clk 0:01:15]} 28. e3 {[%clk 0:01:45]}  Bxe3 {[%clk 0:00:41]} 29. Rxe3 {[%clk 0:01:45]}  Rxe3 {[%clk 0:00:41]} 30. Qxe3 {[%clk 0:01:46]}  Nc2 {[%clk 0:00:42]} 31. Qd3 {[%clk 0:01:34]}  Nd4 {[%clk 0:00:42]} 32. Ne2 {[%clk 0:01:34]}  Nxe2 {[%clk 0:00:38]} 33. Qxe2 {[%clk 0:01:35]}  Re8 {[%clk 0:00:38]} 34. Qb2 {[%clk 0:01:35]}  Re7 {[%clk 0:00:25]} 35. f5 {[%clk 0:01:28]}  Ne8 {[%clk 0:00:13]} 36. fxg6 {[%clk 0:01:24]}  hxg6 {[%clk 0:00:11]} 37. Rf8+ {[%clk 0:01:23]}  Kh7 {[%clk 0:00:10]} 38. Qh8# {[%clk 0:01:24]} 1-0


[Site "https://www.chess.com"]